Cogmind - Beta 10.2 @@@ ROGUE MODE // 2021.09.11 @ 19:05:35 Player: cavemonk Result: Destroyed by G-34 Mercenary with Small Laser Performance ------------- Evolutions (0) 0 Regions Visited (1) 200 Robots Destroyed (14) 70 Value Destroyed (467) 467 Prototype IDs (0) 0 Alien Tech Used (0) 0 Bonus (16) 16 TOTAL SCORE: 753 Bonus ------- High Alert Combat Kills 16 Cogmind --------- Core Integrity 0/250 Matter 214/300 Energy 98/100 System Corruption 2% Temperature Cool (12) Movement Core (50) Location -10/Materials Parts ------- > --- POWER (1) -------- (None) > --- PROPULSION (2) --- (None) > --- UTILITY (2) ------ Core Shielding > --- WEAPON (2) ------- (None) > --- INVENTORY (4) ---- Medium Storage Unit Large Storage Unit High-capacity Storage Unit Grenade Launcher Peak State ------------ > --- POWER ------------ (None) > --- PROPULSION ------- Light Treads Light Treads > --- UTILITY ---------- Core Shielding > --- WEAPON ----------- Grenade Launcher > --- INVENTORY -------- Medium Storage Unit Large Storage Unit Assault Rifle [Rating: 4] Favorites ----------- Power None Propulsion Light Treads Treads Light Treads Utility Core Shielding Protection Core Shielding Weapon Grenade Launcher Launcher Grenade Launcher Build | -11 -10 ------- Run | Scr Mat Slots Evolved . | . . Power . | . . Propulsion . | . . Utility . | . . Weapon . | . . Parts Attached 4 | 2 2 Power . | . . Engine . | . . Core . | . . Reactor . | . . Propulsion 2 | 2 . Treads 2 | 2 . Leg . | . . Wheel . | . . Hover . | . . Flight . | . . Utility 1 | . 1 Device . | . . Storage . | . . Processor . | . . Hackware . | . . Protection 1 | . 1 Artifact . | . . Weapon 1 | . 1 Energy Gun . | . . Energy Cannon . | . . Ballistic Gun . | . . Ballistic Cannon . | . . Launcher 1 | . 1 Special Weapon . | . . Impact Weapon . | . . Slashing Weapon . | . . Piercing Weapon . | . . Special Melee Weapon . | . . Unidentified Prototypes . | . . Parts Lost 2 | . 2 Power . | . . Propulsion 2 | . 2 Utility . | . . Weapon . | . . Highest Loss Streak 2 | . 2 Average Slot Usage (%) 27 | . 27 Treads 17 | . 17 Protection 7 | . 7 Launcher 1 | . 1 Naked Turns . | . . Heaviest Build 4 | . 4 Greatest Support 3 | 3 3 Greatest Overweight (x) 1 | . 1 Average Overweight (x) . | . . Largest Inventory Capacity 4 | 4 4 Average Capacity 4 | 4 4 Most Carried 4 | 4 4 Average Carried 3 | 3 3 Final Capacity 4 | 4 4 Final Carried 4 | 3 4 Class Distribution -------------------- 100% | Mutant Dominant Class ---------------- Mutant | -10/Materials Resources | -11 -10 ----------- Run | Scr Mat Matter Collected 262 | 189 73 Remotely . | . . Salvage Created 288 | . 288 Parts 15 | . 15 Haulers Intercepted . | . . Recyclers Shooed 1 | . 1 Parts Field Recycled . | . . Retrieved Matter . | . . Parts Self-Destructed . | . . Prevented . | . . Kills | -11 -10 ------- Run | Scr Mat Combat Hostiles Destroyed 10 | . 10 AOE 10 | . 10 Classes Destroyed 4 | . 4 Worker 2 | . 2 Recycler 1 | . 1 Watcher 1 | . 1 Grunt 10 | . 10 Best Kill Streak 14 | . 14 Combat Bots Only 10 | . 10 Max Kills in Single Turn 7 | . 7 Gunslinging . | . . Exploded 6 | . 6 Melee . | . . Uniques/NPCs Destroyed . | . . Combat | -11 -10 -------- Run | Scr Mat Damage Taken 601 | . 601 Core 252 | . 252 Absorbed by Shields . | . . Core Remaining (%) 100 | 100 . Volleys Fired 12 | . 12 Largest 1 | . 1 Hottest 30 | . 30 Shots Fired 12 | . 12 Gun . | . . Cannon . | . . Launcher 12 | . 12 Special . | . . Kinetic . | . . Thermal . | . . Explosive 12 | . 12 Electromagnetic . | . . Robot Hit Streak 1 | . 1 Robot Miss Streak . | . . Penetration Max . | . . Secondary Targets . | . . Shots Hit Robots 1 | . 1 Core Hits 22 | . 22 Critical Hits . | . . Critical Kills . | . . Critical Parts Destroyed . | . . Melee Attacks . | . . Impact . | . . Slashing . | . . Piercing . | . . Sneak Attacks . | . . Combat Hostiles . | . . Follow-up Attacks . | . . Damage Inflicted 1270 | . 1270 Guns . | . . Cannons . | . . Explosions 1270 | . 1270 Melee . | . . Ramming . | . . Kinetic . | . . Thermal 621 | . 621 Explosive 649 | . 649 Electromagnetic . | . . Impact . | . . Slashing . | . . Piercing . | . . Highest Corruption 2 | . 2 Average Corruption 2 | . 2 Corruption Purged . | . . Effects 1 | . 1 Data Loss (minor) 1 | . 1 Overload Shots . | . . Overflow Damage 151 | . 151 Projectiles . | . . Explosions 151 | . 151 Melee . | . . Knockbacks . | . . Impact . | . . Kinetic . | . . Secondary . | . . Self-Inflicted Damage 69 | . 69 Shots 1 | . 1 Rammed 1 | . 1 Targets Rammed 1 | . 1 Kicked . | . . Crushed . | . . Highest Temperature 2 | . 2 Average Temperature 2 | . 2 Received Heat Transfer 288 | . 288 Siege Activations . | . . Robots Corrupted . | . . Combat Hostiles . | . . Parts Fried . | . . Impact Corruptions . | . . Robots Melted . | . . Combat Hostiles . | . . Parts Melted . | . . Heat Transferred 400 | . 400 Parts Sabotaged . | . . Parts Stolen . | . . Parts Stripped . | . . Power Chain Reactions . | . . Missiles Intercepted . | . . Alert | -11 -10 ------- Run | Scr Mat Peak Influence 497 | . 497 Initial . | . . Average 240 | . 244 Maximum Alert Level 2 | . 2 Low Security (%) 52 | 100 51 Level 1 5 | . 5 Level 2 42 | . 42 Level 3 . | . . Level 4 . | . . Level 5 . | . . High Security . | . . Max Security . | . . Squads Dispatched 8 | . 8 Investigation 7 | . 7 Extermination . | . . Reinforcement 1 | . 1 Assault . | . . Garrison . | . . Intercept . | . . Construction Impeded . | . . Haulers Reinforced . | . . Stealth | -11 -10 --------- Run | Scr Mat Distress Signals 2 | . 2 Communications Jammed . | . . Distress Signals . | . . Times Spotted 25 | . 25 Peak Tracking Total 10 | . 10 Tactical Retreats 1 | . 1 Traps | -11 -10 ------- Run | Scr Mat Traps Triggered 2 | . 2 Indirectly . | . . Trap Hack Attempts . | . . Triggered . | . . Disarmed . | . . Reprogrammed 6 | . 6 Reused . | . . Traps Extracted . | . . Installed . | . . Triggered . | . . Machines | -11 -10 ---------- Run | Scr Mat Machines Disabled 3 | . 3 Max in Single Turn 2 | . 2 Machines Sabotaged 1 | . 1 Garrisons Compromised . | . . Overloaded Fab Kills . | . . Fab Network Shutdowns . | . . Hacking | -11 -10 --------- Run | Scr Mat Machines Accessed 7 | . 7 Terminals 6 | . 6 Fabricators . | . . Repair Stations . | . . Recycling Units 1 | . 1 Scanalyzers . | . . Garrison Access . | . . Total Hacks 13 | . 13 Successful 10 | . 10 Failed 3 | . 3 Catastrophic . | . . Database Lockouts . | . . Manual 11 | . 11 Terminals 11 | . 11 Fabricators . | . . Repair Stations . | . . Recycling Units 2 | . 2 Scanalyzers . | . . Garrison Access . | . . Terminal Hacks 3 | . 3 Alert Level 1 | . 1 Reprogram Traps 1 | . 1 Hauler Manifests 1 | . 1 Fabricator Hacks . | . . Repair Station Hacks . | . . Recycling Unit Hacks . | . . Scanalyzer . | . . Garrison Access Hacks . | . . Unauthorized Hacks 7 | . 7 Terminals 6 | . 6 Sabotage 6 | . 6 Fabricators . | . . Repair Stations . | . . Recycling Units 1 | . 1 Tunnel 1 | . 1 Scanalyzers . | . . Garrison Access . | . . Data Cores Recovered . | . . Used . | . . Hacking Detections 3 | . 3 Full Trace Events . | . . Feedback Events . | . . Feedback Blocked . | . . Robot Schematics Acquired . | . . Robots Built . | . . Matter . | . . Time . | . . Total Robot Build Rating . | . . Part Schematics Acquired . | . . Parts Built . | . . Matter . | . . Time . | . . Total Part Build Rating . | . . Parts Repaired . | . . Time . | . . Parts Recycled . | . . Recycled Matter . | . . Retrieved Matter . | . . Retrieved Components . | . . Parts Scanalyzed . | . . Part Schematics Acquired . | . . Parts Damaged . | . . Bothacking | -11 -10 ------------ Run | Scr Mat Used RIF Installer . | . . Robots Hacked . | . . Non-combat . | . . Combat . | . . Robot Hacks Applied . | . . Relay Couplers Released . | . . Robots Rewired . | . . Allies Hacked . | . . Hacks Repelled . | . . Allies | -11 -10 -------- Run | Scr Mat Total Allies . | . . Largest Group . | . . Highest-Rated Group . | . . Highest-Rated Ally . | . . Total Orders . | . . Ally Attacks . | . . Total Damage . | . . Kills . | . . Allies Corrupted . | . . Allies Melted . | . . Intel | -11 -10 ------- Run | Scr Mat Robot Analysis Total . | . . Derelict Logs Recovered . | . . Drone Launches . | . . Drone Recoveries . | . . Exploration | -11 -10 ------------- Run | Scr Mat Turns Passed 223 | 4 219 Spaces Moved 346 | 3 343 Core 346 | 3 343 Treads . | . . Legs . | . . Wheels . | . . Hover . | . . Flight . | . . Fastest Speed 50 | 50 50 Average Speed 50 | 50 50 Slowest Speed 100 | 50 100 Overloaded Moves . | . . Propulsion Burnouts . | . . Robots Hopped . | . . Cave-ins Triggered . | . . Exploration Rate (%) 34 | 2 67 Regions Visited 1 Branch Regions . Pre-discovered Areas 1 | . 1 Known Exits Taken . | . . Unknown Exits Taken 1 | 1 . Scrap Searched . | . . Spaces Dug . | . . Terrain Destroyed 60 | . 60 Melee . | . . Projectile . | . . AOE 60 | . 60 Terrain Rammed . | . . Walls Destroyed . | . . Machines Disabled . | . . Actions | -11 -10 --------- Run | Scr Mat Total 383 | 4 379 Wait 13 | . 13 Move 345 | 2 343 Hop . | . . Pick Up 4 | . 4 Fast Attach 2 | 1 1 Attach 2 | 1 1 Detach 1 | . 1 Swap . | . . Drop 3 | . 3 Fire 12 | . 12 Melee . | . . Ram 1 | . 1 Kick . | . . Crush . | . . Escape Stasis . | . . Rewire . | . . Trap . | . . Miscellaneous . | . . Route ------- -11/Scrapyard -10/Materials (discovered 3 exits: [*Mat] / [*Min x2]) History --------- Turn | Location | Event 1 | -11/Scrapyard | Released all parts (6) 1 | -11/Scrapyard | Discovered new exit (range 3) 5 | -11/Scrapyard | Entered Materials 90 | -10/Materials | Discovered new exit (range 14) 159 | -10/Materials | Destroyed 10 combat bots 183 | -10/Materials | Discovered new exit (range 16) 201 | -10/Materials | Core integrity fell below 50% 222 | -10/Materials | Core integrity fell below 20% 222 | -10/Materials | Discovered new exit (range 12) 224 | -10/Materials | Destroyed by G-34 Mercenary with Small Laser Last Messages --------------- 00189_ K-01 Serf collects debris. 00194_ Dropped Assault Rifle. 00194_ Acquired Hcp. Storage Unit. 00209_ Connecting with Terminal... >>Force(Sabotage) SYSTEM_VULNERABLE[Nuclear Reactor] NETWORK_OVERLOAD_FAIL 00209_ ALERT: Suspicious activity at Terminal M001. Dispatching Investigation squad. 00211_ U-05 Engineer lays Concrete. 00214_ Connecting with Terminal... >>Alert(Check) Current Alert Level: 2-H >>Force(Sabotage) SYSTEM_VULNERABLE[Nuclear Reactor] NETWORK_OVERLOAD_FAIL 00214_ ALERT: Suspicious activity at Terminal M003. Dispatching Investigation squad. 00214_ K-01 Serf collects debris. 00222_ EXIT=FOUND Map ----- +----------------------------------------------------+ | ########### #?# #????????## ##?????????? | | # ## #?# #????????# ########### | | # ## ### #????????# | | # # ## ########## T | | # # # | | # + # ######### ###+####### | | # # = # #???????######## ????? | | # # # #?????#####????#""" ??? | | # ## ##### #????#"R #? | | # ## #????#""" #? | | ######+#### #????# #? | | ?????# #### #????# """ #? | | ?????# ^ ##### #????# """ #? | | ?????# ^ #?????# ###????# """ #? | | ?????# ^ g "#???????#??????? ????? | | ?????# T#?????????????????? ????? | | ?????# " "ggg"#???????????????????????? | | ?????# """ """ #???????????????????????? | | ?????# "" "" #######+###?????????????? | | ?????# """ """ # #?????????????? | | ?????# "" ^^"" # "T" #?????????????? | | ??????^ """ """ + #?????????????? | | ?????? """ """ # #?????????????? | | ?????# """ """ ###########?????????????? | | ?????# " " #????????????????????? | | ?????# g @ #????????????????????? | | ?????# #????????????????????? | | ?????### #### #????????????????????? | | ???????#+## ???# #????????????????????? | | ??????????# ????# #????????????????????? | | ??????????# ????#g##+#????????????????????? | | ??????????+ ???? g ???????????????????? | | ??????????#???# #??????????????????? | | ??????????????# #??????????????????? | | ??????????????# #??????????????????? | | ??????????????+ #??????????????????? | | ????????????? # #??????????????????? | | ????????????< # #??????????????????? | | ???????????? ?# #??????????????????? | | ???????????#??###########??????????????????? | | ???????????????????????????????????????????? | | ???????????????????????????????????????????? | | ???????????????????????????????????????????? | | ???????????????????????????????????????????? | | ???????????????????????????????????????????? | | ???????????????????????????????????????????? | | ???????????????????????????????????????????? | | ???????????????????????????????????????????? | | | | | +----------------------------------------------------+ Best States ------------- Heat Dissipation 25 Energy Generation 5 Energy Capacity 100 Matter Stores 300 Matter Capacity 300 Sight Range 16 Terrain Scan Density 10 Core Shielding 20 Evasion (%) 50 Item Schematics ----------------- None Robot Schematics ------------------ None Fabricated ------------ Nothing Alien Tech Used ----------------- None Achievements -------------- None Challenges ------------ None Game ------ Seed SystemSpectralBox Manual? 0 Play Time 00:07:50 Cumulative 273.1 hours Start 2021.09.11 @ 18:36:42 End 2021.09.11 @ 19:05:35 Sessions 1 Manual Loads 0 Difficulty Rogue Special Mode None Game No. 204 Rogue 204 Adventurer 0 Explorer 0 Win Type - Total 5 Types 5/0/0/0/0/0/0/0/0 Lore% 51 Gallery% 73 Achievement% 58 Wizard Run 0 Options --------- ASCII 0 Keyboard 0 Movement Numpad Keybinds 0 Fullscreen 2 Font 18/TerminusBold Map View 76x50 Tactical HUD 1 Map Filters NONE Filters NONE Steam 1 RUN: fd17783d-ab77-44b5-a9b2-b31cba06c988